fUSD/lending_fUSD_20260402
["ID","MTS","AMOUNT","RATE_DAILY","PERIOD"]
[419311876,1775147439275,-200.0,0.00012673,2]
[419311878,1775147439284,-500.0,0.00012673,2]
[419311880,1775147439293,-1000.0,0.00012673,2]
[419311882,1775147439302,-1000.0,0.00012673,2]
[419311884,1775147439313,-288.09023334,0.00012673,2]
[419311886,1775147439322,-155.0,0.00012673,3]
[419311887,1775147439332,-157.0,0.00012673,3]
[419311890,1775147439342,-156.32,0.00012738,2]
[419311892,1775147439352,-1486.5,0.00012738,2]
[419311893,1775147439362,-200.0,0.000128,2]
[419311895,1775147439372,-174.0465,0.000128,7]
[419311897,1775147439382,-959.83,0.00012846,2]
[419311899,1775147439392,-273.9,0.00012877,2]
[419311901,1775147439401,-1000.0,0.00012882,2]
[419311903,1775147439411,-6973.6711,0.00012882,2]
[419311905,1775147439420,-387.94702184,0.00012882,2]
[419311907,1775147439431,-1500.0,0.000129,4]
[419311909,1775147439442,-200.0,0.00012928,2]
[419311912,1775147439452,-24984.01404667,0.0001295,2]
[419311914,1775147439461,-151.0,0.00012961,2]
[419311916,1775147439471,-151.0,0.00012979,2]
[419311918,1775147439481,-151.0,0.00012979,2]
[419311919,1775147439490,-3428.1255176,0.00012982,2]
[419311921,1775147439500,-151.0,0.00012982,2]
[419311923,1775147439511,-151.0,0.00012982,2]
[419311925,1775147439520,-151.0,0.00012982,2]
[419311927,1775147439530,-151.0,0.00012982,2]
[419311929,1775147439540,-151.0,0.00012982,2]
[419311931,1775147439549,-151.0,0.00012982,2]
[419311933,1775147439559,-151.0,0.00012982,2]
[419311935,1775147439569,-151.0,0.00012982,2]
[419311937,1775147439579,-151.0,0.00012982,2]
[419311939,1775147439588,-151.0,0.00012982,2]
[419311941,1775147439598,-250.0,0.00013,2]
[419311943,1775147439608,-350.0,0.00013015,2]
[419311945,1775147439617,-200.0,0.00013057,2]
[419311947,1775147439629,-413.25600419,0.00013073,2]
[419311949,1775147439639,-166.68740095,0.00013073,2]
[419311951,1775147439649,-200.0,0.00013105,2]
[419311953,1775147439659,-959.83,0.0001312,2]
[419311955,1775147439669,-1011.5547996,0.00013121,2]
[419311957,1775147439678,-500.0,0.00013136,2]
[419311959,1775147439689,-200.0,0.00013188,2]
[419311961,1775147439699,-407.0,0.000132,5]
[419311962,1775147439709,-597.15847285,0.00013221,2]
[419311963,1775147439718,-1061.25077082,0.00013221,2]
[419311964,1775147439728,-350.0,0.00013249,2]
[419311965,1775147439739,-530.58157692,0.00013251,2]
[419311966,1775147439749,-2000.0,0.00013251,2]
[419311967,1775147439758,-500.0,0.00013252,2]
[419311968,1775147439768,-500.0,0.00013252,2]
[419311969,1775147439778,-500.0,0.00013252,2]
[419311970,1775147439788,-169.95916722,0.00013272,2]
[419311971,1775147439798,-2000.0,0.00013297,2]
[419311972,1775147439808,-959.83,0.00013394,2]
[419311973,1775147439818,-151.0,0.0001341,2]
[419311974,1775147439828,-151.0,0.0001341,2]
[419311975,1775147439838,-151.0,0.0001341,2]
[419311976,1775147439849,-200.040418,0.0001341,2]
[419311977,1775147439860,-151.0,0.0001341,2]
[419311978,1775147439870,-151.0,0.0001341,2]
[419311979,1775147439880,-2743.88,0.00013425,2]
[419311980,1775147439890,-151.0,0.0001344,2]
[419311981,1775147439902,-151.0,0.0001344,2]
[419311982,1775147439912,-151.0,0.0001344,2]
[419311983,1775147439922,-480.930567,0.0001344,2]
[419311984,1775147439931,-480.930567,0.0001344,2]
[419311985,1775147439945,-480.930567,0.0001344,2]
[419311986,1775147439955,-480.930567,0.0001344,2]
[419311987,1775147439964,-2000.0,0.00013451,2]
[419311988,1775147439975,-165.46,0.00013453,2]
[419311989,1775147439984,-350.0,0.00013465,2]
[419311990,1775147439994,-333.9792607,0.00013481,2]
[419311991,1775147440004,-511.0,0.000135,2]
[419311992,1775147440014,-374.14355529,0.00013572,2]
[419311993,1775147440023,-453.118256,0.00013598,2]
[419311994,1775147440033,-255.0,0.00013649,2]
[419311995,1775147440043,-160.0,0.0001365,2]
[419311996,1775147440052,-292.062245,0.0001365,2]
[419311997,1775147440062,-424.12449,0.0001365,2]
[419311998,1775147440071,-2000.0,0.00013651,2]
[419311999,1775147440080,-200.0,0.00013653,2]
[419312000,1775147440090,-959.83,0.00013668,2]
[419312001,1775147440100,-151.0,0.00013696,2]
[419312002,1775147440109,-500.0,0.00013698,2]
[419312003,1775147440119,-500.0,0.00013698,2]
[419312004,1775147440129,-500.0,0.00013698,2]
[419312005,1775147440141,-500.0,0.00013698,2]
[419312006,1775147440151,-500.0,0.00013698,2]
[419312007,1775147440161,-500.0,0.00013698,2]
[419312008,1775147440170,-500.0,0.00013698,2]
[419312009,1775147440181,-500.0,0.00013698,2]
[419312010,1775147440191,-500.0,0.00013698,2]
[419312011,1775147440201,-500.0,0.00013698,2]
[419312012,1775147440210,-500.0,0.00013698,2]
[419312013,1775147440220,-500.0,0.00013698,2]
[419312014,1775147440229,-500.0,0.00013698,2]
[419312015,1775147440239,-500.0,0.00013698,2]
[419312016,1775147440248,-500.0,0.00013698,2]
[419312017,1775147440258,-561.59815036,0.00013698,2]
[419312018,1775147440268,-500.0,0.00013698,2]
[419312019,1775147440278,-500.0,0.00013698,2]
[419312020,1775147440287,-500.0,0.00013698,2]
[419312021,1775147440297,-500.0,0.00013698,2]
[419312022,1775147440307,-500.0,0.00013698,2]
[419312023,1775147440316,-500.0,0.00013698,2]
[419312024,1775147440327,-500.0,0.00013698,2]
[419312025,1775147440336,-500.0,0.00013698,2]
[419312026,1775147440346,-500.0,0.00013698,2]
[419312027,1775147440356,-500.0,0.00013698,2]
[419312028,1775147440366,-500.0,0.00013698,2]
[419312029,1775147440375,-500.0,0.00013698,2]
[419312030,1775147440384,-319.28218799,0.00013698,2]
[419312031,1775147440394,-500.0,0.00013698,2]
[419312032,1775147440403,-509.91183271,0.00013698,2]
[419312033,1775147440412,-500.0,0.00013698,2]
[419312034,1775147440422,-500.0,0.00013698,2]
[419312035,1775147440431,-500.0,0.00013698,2]
[419312036,1775147440441,-500.0,0.00013698,2]
[419312037,1775147440450,-500.0,0.00013698,2]
[419312038,1775147440460,-500.0,0.00013698,2]
[419312039,1775147440469,-500.0,0.00013698,2]
[419312040,1775147440478,-500.0,0.00013698,2]
[419312041,1775147440487,-500.0,0.00013698,2]
[419312042,1775147440497,-500.0,0.00013698,2]
[419312043,1775147440507,-500.0,0.00013698,2]
[419312044,1775147440516,-500.0,0.00013698,2]
[419312045,1775147440526,-500.0,0.00013698,2]
[419312046,1775147440536,-500.0,0.00013698,2]
[419312047,1775147440546,-500.0,0.00013698,2]
[419312049,1775147440555,-500.0,0.00013698,2]
[419312051,1775147440565,-500.0,0.00013698,2]
[419312052,1775147440574,-500.0,0.00013698,2]
[419312053,1775147440584,-500.0,0.00013698,2]
[419312055,1775147440594,-500.0,0.00013698,2]
[419312057,1775147440604,-500.0,0.00013698,2]
[419312058,1775147440613,-500.0,0.00013698,2]
[419312059,1775147440622,-500.0,0.00013698,2]
[419312060,1775147440631,-488.21639013,0.00013698,2]
[419312061,1775147440641,-500.0,0.00013698,2]
[419312062,1775147440650,-500.0,0.00013698,2]
[419312063,1775147440660,-500.0,0.00013698,2]
[419312064,1775147440670,-500.0,0.00013698,2]
[419312065,1775147440679,-500.0,0.00013698,2]
[419312066,1775147440689,-500.0,0.00013698,2]
[419312067,1775147440699,-500.0,0.00013698,2]
[419312068,1775147440708,-500.0,0.00013698,2]
[419312069,1775147440724,-500.0,0.00013698,2]
[419312070,1775147440745,-500.0,0.00013698,2]
[419312071,1775147440760,-500.0,0.00013698,2]
[419312072,1775147440770,-500.0,0.00013698,2]
[419312073,1775147440779,-500.0,0.00013698,2]
[419312074,1775147440789,-500.0,0.00013698,2]
[419312075,1775147440799,-500.0,0.00013698,2]
[419312076,1775147440808,-500.0,0.00013698,2]
[419312077,1775147440818,-500.0,0.00013698,2]
[419312078,1775147440827,-500.0,0.00013698,2]
[419312079,1775147440837,-500.0,0.00013698,2]
[419312080,1775147440937,-595.04234925,0.00013698,2]
[419312081,1775147440946,-510.83599728,0.00013698,2]
[419312082,1775147440955,-150.0,0.00013699,2]
[419312083,1775147440964,-150.0,0.00013699,2]
[419312084,1775147440974,-150.0,0.00013699,2]
[419312085,1775147440983,-200.0,0.00013699,2]
[419312086,1775147440993,-166.66,0.00013699,2]
[419312087,1775147441003,-205.16,0.00013699,2]
[419312088,1775147441012,-1280.23,0.00013699,2]
[419312089,1775147441021,-151.0,0.00013699,2]
[419312090,1775147441030,-151.0,0.00013699,2]
[419312091,1775147441039,-151.0,0.00013699,2]
[419312092,1775147441049,-151.0,0.00013699,2]
[419312093,1775147441059,-603.311962,0.00013699,2]
[419312094,1775147441067,-603.311962,0.00013699,2]
[419312095,1775147441076,-603.311962,0.00013699,2]
[419312096,1775147441086,-603.311962,0.00013699,2]
[419312097,1775147441095,-287.523647,0.00013699,2]
[419312098,1775147441104,-287.523647,0.00013699,2]
[419312099,1775147441114,-287.523647,0.00013699,2]
[419312100,1775147441123,-287.523647,0.00013699,2]
[419312101,1775147441133,-165.49145903,0.00013699,2]
[419312102,1775147441142,-500.0,0.00013699,2]
[419312103,1775147441151,-500.0,0.00013699,2]
[419312104,1775147441160,-500.0,0.00013699,2]
[419312105,1775147441170,-502.59758452,0.00013699,2]
[419312106,1775147441179,-500.0,0.00013699,2]
[419312107,1775147441188,-500.0,0.00013699,2]
[419312108,1775147441197,-500.0,0.00013699,2]
[419312109,1775147441207,-500.0,0.00013699,2]
[419312110,1775147441216,-500.0,0.00013699,2]
[419312111,1775147441226,-500.0,0.00013699,2]
[419312112,1775147441235,-500.62845859,0.00013699,2]
[419312113,1775147441244,-500.0,0.00013699,2]
[419312114,1775147441254,-500.0,0.00013699,2]
[419312115,1775147441263,-500.0,0.00013699,2]
[419312116,1775147441272,-500.0,0.00013699,2]
[419312117,1775147441282,-500.0,0.00013699,2]
[419312118,1775147441291,-609.23348249,0.00013699,2]
[419312119,1775147441300,-500.0,0.00013699,2]
[419312120,1775147441309,-500.0,0.00013699,2]
[419312121,1775147441318,-518.78086714,0.00013699,2]
[419312122,1775147441328,-151.56,0.00013699,2]
[419312123,1775147441337,-227.95304474,0.00013699,2]
[419312124,1775147441346,-1861.21,0.000137,2]
[419312125,1775147441355,-1861.21,0.000137,2]
[419312126,1775147441364,-1861.21,0.000137,2]
[419312127,1775147441373,-1861.21,0.000137,2]
[419312128,1775147441382,-1861.21,0.000137,2]
[419312129,1775147441391,-151.0,0.00013701,2]
[419312130,1775147441400,-151.0,0.00013701,2]
[419312131,1775147441410,-151.0,0.00013701,2]
[419312132,1775147441420,-151.0,0.00013701,2]
[419312133,1775147441430,-158.872498,0.00013701,2]
[419312134,1775147441440,-350.0,0.00013716,2]
[419312135,1775147441449,-500.0,0.00013723,2]
[419312136,1775147441459,-501.37276755,0.00013723,2]
[419312137,1775147441468,-500.0,0.00013723,2]
[419312138,1775147441478,-500.0,0.00013723,2]
[419312139,1775147441488,-500.0,0.00013723,2]
[419312141,1775147441497,-500.0,0.00013723,2]
[419312142,1775147441507,-500.0,0.00013723,2]
[419312143,1775147441516,-500.0,0.00013723,2]
[419312144,1775147441526,-384.73655496,0.00013723,2]
[419312145,1775147441535,-500.0,0.00013723,2]
[419312146,1775147441544,-500.0,0.00013723,2]
[419312147,1775147441554,-500.0,0.00013723,2]
[419312148,1775147441563,-289.05679674,0.00013723,2]
[419312149,1775147441578,-53.84918344,0.00013723,2]
[419312150,1775147441587,-500.0,0.00013723,2]
[419312151,1775147441597,-500.0,0.00013723,2]
[419312152,1775147441607,-500.0,0.00013723,2]
[419312153,1775147441616,-500.0,0.00013723,2]
[419312154,1775147441627,-183.08117063,0.00013735,2]
[419312155,1775147441636,-350.0,0.00013756,2]
[419312156,1775147441646,-195.0021864,0.00013792,2]
[419312157,1775147441656,-1000.0,0.000138,2]
[419312158,1775147441668,-1000.0,0.000138,2]
[419312159,1775147441677,-1001.67855026,0.000138,2]
[419312160,1775147441686,-500.0,0.00013813,2]
[419312161,1775147441696,-490.51689563,0.00013813,2]
[419312162,1775147441706,-166.66,0.00013836,2]
[419312163,1775147441716,-172.59735586,0.00013844,2]
[419312164,1775147441726,-2000.0,0.00013851,2]
[419312165,1775147441735,-2211.0,0.00013875,5]
[419312166,1775147441744,-851.580396,0.00013875,2]
[419312167,1775147441753,-851.580396,0.00013875,2]
[419312168,1775147441763,-851.580396,0.00013875,2]
[419312169,1775147441772,-851.580396,0.00013875,2]
[419312170,1775147441781,-151.0,0.00013875,2]
[419312171,1775147441790,-151.0,0.00013875,2]
[419312172,1775147441800,-151.0,0.00013875,2]
[419312173,1775147441809,-151.0,0.00013875,2]
[419312174,1775147441818,-151.0,0.00013875,2]
[419312175,1775147441827,-151.0,0.00013875,2]
[419312176,1775147441836,-151.0,0.00013875,2]
[419312177,1775147441846,-603.311962,0.00013875,2]
[419312178,1775147441855,-603.311962,0.00013875,2]
[419312179,1775147441864,-603.311962,0.00013875,2]
[419312180,1775147441872,-603.311962,0.00013875,2]
[419312181,1775147441882,-287.523647,0.00013875,2]
[419312182,1775147441891,-287.523647,0.00013875,2]
[419312183,1775147441900,-287.523647,0.00013875,2]
[419312184,1775147441909,-287.523647,0.00013875,2]
[419312185,1775147441919,-350.0,0.0001388,2]
[419312186,1775147441929,-3000.0,0.000139,5]
[419312187,1775147441938,-500.0,0.00013929,2]
[419312188,1775147441949,-500.48771159,0.00013929,2]
[419312189,1775147441958,-500.0,0.00013929,2]
[419312190,1775147441967,-500.0,0.00013929,2]
[419312191,1775147441976,-2351.0,0.00013936,2]
[419312192,1775147441986,-959.83,0.00013942,2]
[419312193,1775147441995,-205.39463559,0.00013943,2]
[419312194,1775147442004,-350.0,0.00013967,2]
[419312195,1775147442013,-150.0,0.00013973,2]
[419312196,1775147442022,-150.0,0.00013973,2]
[419312197,1775147442032,-166.66,0.00013973,2]
[419312198,1775147442041,-165.46,0.00013986,2]
[419312199,1775147442050,-500.0,0.00013989,2]
[419312200,1775147442060,-500.0,0.00013989,2]
[419312201,1775147442069,-500.0,0.00013989,2]
[419312202,1775147442078,-350.0,0.00014,2]
[419312203,1775147442087,-1334.45186948,0.00014006,2]
[419312204,1775147442096,-156.32,0.00014012,2]
[419312205,1775147442105,-350.0,0.00014046,2]
[419312206,1775147442114,-2000.0,0.00014051,2]
[419312207,1775147442124,-350.0,0.00014063,2]
[419312208,1775147442134,-201.948,0.000141,12]
[419312209,1775147442145,-166.66,0.0001411,2]
[419312210,1775147442154,-350.0,0.00014112,2]
[419312211,1775147442164,-264.49716244,0.00014166,2]
[419312212,1775147442173,-285.95309516,0.00014201,2]
[419312213,1775147442182,-959.83,0.00014216,2]
[419312214,1775147442192,-166.66,0.00014247,2]
[419312215,1775147442202,-150.0,0.00014247,2]
[419312216,1775147442210,-722.96972885,0.00014247,2]
[419312217,1775147442219,-806.90768699,0.00014247,2]
[419312218,1775147442228,-500.84806746,0.00014247,2]
[419312219,1775147442238,-1000.0,0.00014247,2]
[419312220,1775147442247,-1000.0,0.00014247,2]
[419312221,1775147442256,-1000.0,0.00014247,2]
[419312222,1775147442265,-1102.10958763,0.00014247,2]
[419312223,1775147442274,-500.50185113,0.00014247,2]
[419312224,1775147442283,-501.30239513,0.00014247,2]
[419312225,1775147442293,-1003.93751235,0.00014247,2]
[419312226,1775147442302,-500.0,0.00014247,2]
[419312227,1775147442313,-286.1065946,0.00014247,2]
[419312228,1775147442322,-2000.0,0.00014251,2]
[419312229,1775147442331,-1000.0,0.00014271,2]
[419312230,1775147442340,-392.10429392,0.00014271,2]
[419312231,1775147442349,-1000.0,0.00014271,2]
[419312232,1775147442358,-501.4995107,0.00014271,2]
[419312233,1775147442368,-501.1834914,0.00014271,2]
[419312234,1775147442377,-1001.74712556,0.00014271,2]
[419312235,1775147442386,-500.96174367,0.00014271,2]
[419312236,1775147442395,-555.98551723,0.00014271,2]
[419312237,1775147442404,-1000.0,0.00014271,2]
[419312238,1775147442413,-1000.0,0.00014271,2]
[419312239,1775147442423,-502.01968107,0.00014271,2]
[419312240,1775147442431,-184.40015724,0.00014271,2]
[419312241,1775147442440,-952.97866013,0.00014271,2]
[419312242,1775147442450,-1000.0,0.00014271,2]
[419312243,1775147442459,-205.962843,0.00014277,7]
[419312244,1775147442468,-398.266697,0.00014333,7]
[419312245,1775147442477,-1500.0,0.00014348,2]
[419312246,1775147442487,-637.08253403,0.00014348,2]
[419312247,1775147442498,-421.84600938,0.00014361,2]
[419312248,1775147442507,-1000.0,0.00014361,2]
[419312249,1775147442517,-1600.0,0.00014365,2]
[419312250,1775147442526,-166.66,0.00014384,2]
[419312251,1775147442535,-1280.23,0.00014384,2]
[419312252,1775147442545,-249.88,0.00014392,2]
[419312253,1775147442555,-2759.0,0.00014472,5]
[419312254,1775147442566,-713.31813874,0.00014477,2]
[419312255,1775147442575,-500.0,0.00014477,2]
[419312256,1775147442585,-306.99886496,0.00014477,2]
[419312257,1775147442594,-959.83,0.0001449,2]
[419312258,1775147442603,-500.0,0.00014494,2]
[419312259,1775147442613,-500.0,0.00014494,2]
[419312260,1775147442623,-500.0,0.00014494,2]
[419312261,1775147442633,-500.0,0.00014494,2]
[419312262,1775147442643,-151.0,0.00014494,2]
[419312263,1775147442652,-151.0,0.00014494,2]
[419312264,1775147442661,-151.0,0.00014494,2]
[419312265,1775147442672,-151.0,0.00014494,2]
[419312266,1775147442682,-151.0,0.00014494,2]
[419312267,1775147442696,-500.0,0.00014494,2]
[419312268,1775147442706,-150.0,0.00014499,2]
[419312269,1775147442717,-150.0,0.00014499,2]
[419312270,1775147442726,-150.0,0.00014499,2]
[419312271,1775147442736,-150.0,0.00014499,2]
[419312272,1775147442746,-150.0,0.00014499,2]
[419312273,1775147442756,-150.0,0.00014499,2]
[419312274,1775147442765,-150.0,0.00014499,2]
[419312275,1775147442775,-150.0,0.00014499,2]
[419312276,1775147442784,-150.0,0.00014499,2]
[419312277,1775147442794,-150.0,0.00014499,2]
[419312278,1775147442804,-150.0,0.00014499,2]
[419312279,1775147442813,-150.0,0.00014499,2]
[419312280,1775147442823,-200.60619991,0.00014499,2]
[419312281,1775147442832,-150.0,0.00014499,2]
[419312282,1775147442841,-150.0,0.00014499,2]
[419312283,1775147442850,-500.0,0.00014504,2]
[419312284,1775147442859,-350.0,0.00014506,2]
[419312285,1775147442869,-165.46,0.0001452,2]
[419312286,1775147442878,-150.0,0.00014552,2]
[419312287,1775147442887,-150.0,0.00014561,2]
[419312288,1775147442896,-150.0,0.00014563,2]
[419312289,1775147442905,-150.0,0.00014566,2]
[419312290,1775147442914,-150.0,0.00014583,2]
[419312291,1775147442923,-150.0,0.00014588,2]
[419312292,1775147442933,-150.0,0.00014606,2]
[419312293,1775147442945,-150.0,0.00014623,2]
[419312294,1775147442954,-150.0,0.00014628,2]
[419312295,1775147442963,-150.0,0.00014633,2]
[419312296,1775147442972,-150.0,0.0001466,2]
[419312297,1775147442982,-150.0,0.0001466,2]
[419312298,1775147442991,-150.0,0.0001466,2]
[419312299,1775147443000,-150.0,0.00014668,2]
[419312300,1775147443009,-1950.0,0.00014674,2]
[419312301,1775147443018,-1950.0,0.00014674,2]
[419312302,1775147443027,-1950.0,0.00014674,2]
[419312303,1775147443036,-1950.0,0.00014674,2]
[419312304,1775147443046,-1950.0,0.00014674,2]
[419312305,1775147443055,-1950.0,0.00014674,2]
[419312306,1775147443065,-1950.0,0.00014674,2]
[419312307,1775147443074,-1950.0,0.00014674,2]
[419312308,1775147443084,-1950.0,0.00014674,2]
[419312309,1775147443094,-1641.0,0.00014674,2]
[419312310,1775147443103,-150.0,0.00014678,2]
[419312311,1775147443112,-150.0,0.00014685,2]
[419312312,1775147443122,-150.0,0.00014692,2]
[419312313,1775147443131,-150.0,0.000147,2]
[419312314,1775147443140,-150.0,0.00014713,2]
[419312315,1775147443150,-166.5794692,0.00014726,2]
[419312316,1775147443160,-150.0,0.00014746,2]
[419312317,1775147443170,-150.0,0.00014753,2]
[419312318,1775147443180,-150.0,0.00014756,2]
[419312319,1775147443190,-959.83,0.00014764,2]
[419312320,1775147443200,-150.0,0.00014767,2]
[419312321,1775147443210,-150.0,0.00014767,2]
[419312322,1775147443219,-150.0,0.00014767,2]
[419312323,1775147443229,-150.0,0.00014767,2]
[419312324,1775147443238,-2000.0,0.00014775,2]
[419312325,1775147443248,-500.0,0.00014794,2]
[419312326,1775147443258,-500.0,0.00014795,2]
[419312327,1775147443267,-326.02015785,0.00014795,2]
[419312328,1775147443277,-151.0,0.00014795,2]
[419312329,1775147443287,-151.0,0.00014795,2]
[419312330,1775147443296,-172.002255,0.00014795,2]
[419312331,1775147443306,-480.930567,0.00014795,2]
[419312332,1775147443315,-480.930567,0.00014795,2]
[419312333,1775147443324,-480.930567,0.00014795,2]
[419312334,1775147443334,-480.930567,0.00014795,2]
[419312335,1775147443343,-150.0,0.00014808,2]
[419312336,1775147443353,-502.19050137,0.00014819,2]
[419312337,1775147443363,-629.66942551,0.00014819,2]
[419312338,1775147443372,-1503.04138262,0.00014819,2]
[419312339,1775147443382,-1500.0,0.00014819,2]
[419312340,1775147443391,-1500.0,0.00014819,2]
[419312341,1775147443401,-150.0,0.00014821,2]
[419312342,1775147443410,-150.0,0.00014821,2]
[419312343,1775147443419,-150.0,0.00014821,2]
[419312344,1775147443428,-150.0,0.00014821,2]
[419312345,1775147443438,-150.0,0.00014834,2]
[419312346,1775147443448,-150.0,0.00014838,2]
[419312347,1775147443458,-491.53,0.00014838,2]
[419312348,1775147443468,-433.0,0.00014842,2]
[419312349,1775147443477,-150.0,0.00014857,2]
[419312350,1775147443486,-1800.0,0.00014857,2]
[419312351,1775147443496,-1800.0,0.00014857,2]
[419312352,1775147443506,-1800.0,0.00014857,2]
[419312353,1775147443515,-1800.0,0.00014857,2]
[419312354,1775147443524,-1800.0,0.00014857,2]
[419312355,1775147443534,-1800.0,0.00014857,2]
[419312356,1775147443543,-1800.0,0.00014857,2]
[419312357,1775147443552,-1800.0,0.00014857,2]
[419312358,1775147443561,-1800.0,0.00014857,2]
[419312359,1775147443571,-1327.0,0.00014857,2]
[419312360,1775147443580,-151.0,0.0001487,2]
[419312361,1775147443590,-150.0,0.0001487,2]
[419312362,1775147443599,-500.0,0.00014872,2]
[419312363,1775147443608,-500.0,0.00014872,2]
[419312364,1775147443617,-500.0,0.00014872,2]
[419312365,1775147443626,-500.0,0.00014872,2]
[419312366,1775147443636,-500.0,0.00014872,2]
[419312367,1775147443646,-500.0,0.00014872,2]
[419312368,1775147443656,-150.0,0.00014875,2]
[419312369,1775147443665,-150.0,0.00014885,2]
[419312370,1775147443675,-1504.34724751,0.00014896,2]
[419312371,1775147443685,-150.0,0.00014901,2]
[419312372,1775147443694,-1081.45389944,0.00014909,2]
[419312373,1775147443704,-150.0,0.00014923,2]
[419312374,1775147443714,-150.0,0.00014928,2]
[419312375,1775147443724,-150.0,0.00014932,2]
[419312376,1775147443734,-150.0,0.00014946,2]
[419312377,1775147443743,-150.0,0.0001495,2]
[419312378,1775147443753,-150.0,0.00014968,2]
[419312379,1775147443762,-950.0,0.00014976,2]
[419312380,1775147443772,-950.0,0.00014976,2]
[419312381,1775147443782,-950.0,0.00014976,2]
[419312382,1775147443792,-950.0,0.00014976,2]
[419312383,1775147443801,-950.0,0.00014976,2]
[419312384,1775147443811,-950.0,0.00014976,2]
[419312385,1775147443820,-950.0,0.00014976,2]
[419312386,1775147443830,-950.0,0.00014976,2]
[419312387,1775147443839,-950.0,0.00014976,2]
[419312388,1775147443849,-893.0,0.00014976,2]
[419312389,1775147443858,-150.0,0.00014982,2]
[419312390,1775147443867,-150.0,0.00014982,2]
[419312391,1775147443877,-150.0,0.00014982,2]
[419312392,1775147443886,-150.0,0.00014994,2]
[419312393,1775147443896,-300.0,0.00015,2]
[419312394,1775147443905,-150.0,0.00015007,2]
[419312395,1775147443914,-170.6763195,0.00015012,2]
[419312396,1775147443924,-150.0,0.00015014,2]
[419312397,1775147443933,-249.88,0.00015027,2]
[419312398,1775147443943,-150.0,0.00015036,2]
[419312399,1775147443952,-150.0,0.00015036,2]
[419312400,1775147443962,-150.0,0.00015036,2]
[419312401,1775147443971,-150.0,0.00015036,2]
[419312402,1775147443980,-150.0,0.00015036,2]
[419312403,1775147443990,-959.83,0.00015038,2]
[419312404,1775147444001,-165.46,0.00015053,2]
[419312405,1775147444010,-150.0,0.00015056,2]
[419312406,1775147444019,-20219.1177049,0.00015061,2]
[419312407,1775147444028,-1280.23,0.00015068,2]
[419312408,1775147444038,-496.89,0.00015068,2]
[419312409,1775147444047,-1106.257721,0.00015068,2]
[419312410,1775147444056,-1106.257721,0.00015068,2]
[419312411,1775147444065,-1106.257721,0.00015068,2]
[419312412,1775147444074,-1106.257721,0.00015068,2]
[419312413,1775147444085,-1106.257721,0.00015068,2]
[419312414,1775147444095,-1106.257721,0.00015068,2]
[419312415,1775147444105,-1106.257721,0.00015068,2]
[419312416,1775147444114,-1106.257721,0.00015068,2]
[419312417,1775147444123,-800.0,0.00015068,2]
[419312418,1775147444133,-150.0,0.00015079,2]
[419312419,1775147444142,-150.0,0.00015089,2]
[419312420,1775147444151,-150.0,0.00015092,2]
[419312421,1775147444161,-150.0,0.00015103,2]
[419312422,1775147444170,-289.77950854,0.00015105,2]